bitfinex-derivatives/quotes_BTCF0:USTF0_20250828
["timestamp","ask_amount","ask_price","bid_price","bid_amount"]
[1756410516714,1.30924027,112170.0,112160.0,0.14921133]
[1756410517014,0.46900027,112170.0,112160.0,0.14921133]
[1756410517216,1.30924027,112170.0,112160.0,0.14921133]
[1756410517822,1.30924027,112170.0,112160.0,0.63027895]
[1756410518618,1.30924027,112170.0,112160.0,0.03528743]
[1756410518926,1.79030789,112170.0,112160.0,0.03528743]
[1756410519223,1.79030789,112170.0,112160.0,0.00607343]
[1756410519416,2.08055522,112170.0,112160.0,0.00607343]
[1756410520423,2.08051522,112170.0,112160.0,0.00607343]
[1756410520924,1.5994476,112170.0,112160.0,0.00607343]
[1756410521119,1.24031522,112170.0,112160.0,0.00607343]
[1756410521423,2.08051522,112170.0,112160.0,0.02207343]
[1756410521922,2.44051522,112170.0,112160.0,0.02207343]
[1756410522325,2.08051522,112170.0,112160.0,0.02207343]
[1756410522824,2.39051522,112170.0,112160.0,0.02207343]
[1756410523722,1.55031522,112170.0,112160.0,0.02207343]
[1756410523930,2.39051522,112170.0,112160.0,0.02207343]
[1756410524526,1.9094476,112170.0,112160.0,0.02207343]
[1756410524728,2.39051522,112170.0,112160.0,0.02207343]
[1756410524919,2.39051522,112170.0,112160.0,0.00607343]
[1756410525224,2.39051522,112170.0,112160.0,0.02207343]
[1756410525619,2.39051522,112170.0,112160.0,0.00607343]
[1756410527025,2.39051522,112170.0,112160.0,0.02207343]
[1756410527424,1.55031522,112170.0,112160.0,0.02207343]
[1756410527626,1.9094076,112170.0,112160.0,0.02207343]
[1756410527829,2.39047522,112170.0,112160.0,0.02207343]
[1756410528630,2.39047522,112170.0,112160.0,0.00607343]
[1756410530430,1.9094076,112170.0,112160.0,0.02207343]
[1756410530735,2.39047522,112170.0,112160.0,0.00607343]
[1756410531334,1.9094076,112170.0,112160.0,0.00607343]
[1756410531535,2.39047522,112170.0,112160.0,0.00607343]
[1756410532437,2.36402789,112170.0,112160.0,0.00607343]
[1756410533136,2.11402789,112170.0,112160.0,0.00607343]
[1756410533627,0.089161,112150.0,112140.0,0.1290437]
[1756410533834,0.9888293,112150.0,112140.0,0.1290437]
[1756410534031,0.9888293,112150.0,112140.0,0.61011132]
[1756410534837,0.9888293,112150.0,112140.0,0.61211132]
[1756410535337,0.9888293,112150.0,112140.0,0.61411132]
[1756410537541,0.9888293,112150.0,112140.0,0.61311132]
[1756410537943,0.9888293,112150.0,112140.0,0.61211132]
[1756410540148,0.9888293,112150.0,112140.0,0.1310437]
[1756410540346,0.9888293,112150.0,112140.0,0.61211132]
[1756410541947,0.0595883,112150.0,112140.0,0.61211132]
[1756410542148,0.17831617,112170.0,112160.0,0.1298231]
[1756410542344,1.05906617,112170.0,112160.0,0.62928277]
[1756410543149,1.05906617,112170.0,112160.0,0.62828277]
[1756410543548,1.79013379,112170.0,112160.0,0.03484205]
[1756410543749,1.30906617,112170.0,112160.0,0.01839205]
[1756410544150,1.79013379,112170.0,112160.0,0.01839205]
[1756410544348,1.79213379,112170.0,112160.0,0.01839205]
[1756410544548,1.79313379,112170.0,112160.0,0.10754515]
[1756410544851,1.31206617,112170.0,112160.0,0.12399515]
[1756410545742,0.47214617,112170.0,112160.0,0.12399515]
[1756410546050,1.31194617,112170.0,112160.0,0.62928277]
[1756410546855,1.31194617,112170.0,112160.0,0.14821515]
[1756410547054,1.31194617,112170.0,112160.0,0.12399515]
[1756410547354,1.31194617,112170.0,112160.0,0.14821515]
[1756410553559,1.31194617,112170.0,112160.0,0.62928277]
[1756410554467,1.31194617,112170.0,112160.0,0.60506277]
[1756410554767,1.31194617,112170.0,112160.0,0.12399515]
[1756410555659,1.31194617,112170.0,112160.0,0.03484205]
[1756410556166,1.54301379,112170.0,112160.0,0.01839205]
[1756410556366,0.1299911,112150.0,112140.0,0.105619]
[1756410556567,0.9695511,112150.0,112140.0,0.105619]
[1756410556863,0.9695511,112150.0,112140.0,0.61090662]
[1756410557265,0.9695511,112150.0,112140.0,0.58668662]
[1756410557659,0.9695511,112150.0,112140.0,0.106619]
[1756410557862,0.9695511,112150.0,112140.0,0.107619]
[1756410558569,1.45061872,112150.0,112140.0,0.002]
[1756410558769,1.78056603,112150.0,112140.0,0.002]
[1756410559265,1.29945841,112150.0,112140.0,0.01845]
[1756410559664,1.30817531,112150.0,112140.0,0.01845]
[1756410560569,1.30817531,112150.0,112140.0,0.002]
[1756410562465,1.78924293,112150.0,112140.0,0.002]
[1756410564168,0.94972293,112150.0,112140.0,0.002]
[1756410564368,1.78920293,112150.0,112140.0,0.002]
[1756410565168,1.78916293,112150.0,112140.0,0.002]
[1756410565663,0.46865531,112150.0,112140.0,0.131839]
[1756410565868,0.99805531,112150.0,112140.0,0.131839]
[1756410566764,0.99805531,112150.0,112140.0,0.107619]
[1756410567170,1.47912293,112150.0,112140.0,0.107619]
[1756410567969,0.99805531,112150.0,112140.0,0.107619]
[1756410568764,0.99805531,112150.0,112140.0,0.002]
[1756410568970,1.47912293,112150.0,112140.0,0.002]
[1756410569171,0.63972293,112150.0,112140.0,0.002]
[1756410569369,1.74292293,112150.0,112140.0,0.002]
[1756410571372,1.74292293,112150.0,112140.0,0.091169]
[1756410574367,0.42245531,112150.0,112140.0,0.131499]
[1756410574568,1.26169531,112150.0,112140.0,0.106739]
[1756410575075,1.26169531,112150.0,112140.0,0.091169]
[1756410575272,1.26169531,112150.0,112140.0,0.002]
[1756410575870,1.74276293,112150.0,112140.0,0.002]
[1756410583084,1.75276293,112150.0,112140.0,0.002]
[1756410585486,2.08276293,112150.0,112140.0,0.002]
[1756410587286,2.06276293,112150.0,112140.0,0.002]
[1756410587980,1.58169531,112150.0,112140.0,0.002]
[1756410588180,2.06276293,112150.0,112140.0,0.002]
[1756410588986,1.22352293,112150.0,112140.0,0.002]
[1756410589182,1.25257841,112150.0,112140.0,0.8806352]
[1756410591086,1.25253841,112150.0,112140.0,0.8806352]
[1756410592189,1.25249841,112150.0,112140.0,0.8806352]
[1756410593089,1.25249841,112150.0,112140.0,0.6306352]
[1756410593686,0.41373841,112150.0,112140.0,0.6306352]
[1756410593885,1.25249841,112150.0,112140.0,0.6306352]
[1756410597090,1.25249841,112150.0,112140.0,0.14956758]
[1756410597286,1.73356603,112150.0,112140.0,0.02006868]
[1756410597593,1.71976603,112150.0,112140.0,0.02006868]
[1756410599789,1.71976603,112150.0,112140.0,0.03563868]
[1756410600194,0.06077731,112150.0,112140.0,0.14757748]
[1756410600383,0.04044,112160.0,112150.0,0.1274409]
[1756410600587,0.25134,112160.0,112150.0,0.60850852]
[1756410600794,0.61009124,112170.0,112160.0,0.1274329]
[1756410600992,0.69923624,112170.0,112160.0,0.62623314]
[1756410601297,0.72357624,112170.0,112160.0,0.62623314]
[1756410601593,0.72357624,112170.0,112160.0,0.78708024]
[1756410601788,0.72357624,112170.0,112160.0,0.05601262]
[1756410601987,0.72357624,112170.0,112160.0,0.03324262]
[1756410602182,0.72357624,112170.0,112160.0,0.01773262]
[1756410602183,0.72557624,112170.0,112160.0,0.01773262]
[1756410602492,0.1296009,112150.0,112140.0,0.14551758]
[1756410602703,0.9680009,112150.0,112140.0,0.14551758]
[1756410603092,0.0161,112150.0,112140.0,0.8765852]
[1756410603292,0.0891584,112160.0,112150.0,0.1274409]
[1756410603293,0.9679984,112160.0,112150.0,0.1274409]
[1756410603593,0.9679984,112160.0,112150.0,0.60850852]
[1756410605096,0.9689584,112160.0,112150.0,0.60850852]
[1756410605396,0.9689184,112160.0,112150.0,0.60850852]
[1756410607682,0.9689184,112160.0,112150.0,0.1274409]
[1756410607890,0.9689184,112160.0,112150.0,0.1046709]
[1756410608182,0.9689184,112160.0,112150.0,0.1274409]
[1756410608592,0.9689184,112160.0,112150.0,0.01551]
[1756410608788,0.9689184,112160.0,112150.0,0.1046709]
[1756410609691,0.9689184,112160.0,112150.0,0.01551]
[1756410610292,0.9689184,112160.0,112150.0,0.1046709]
[1756410610698,0.1296009,112150.0,112140.0,0.14551088]
[1756410610895,0.1296009,112150.0,112140.0,0.12274088]
[1756410611099,0.61066852,112150.0,112140.0,0.10723088]
[1756410611295,0.88081362,112150.0,112140.0,0.01806868]
[1756410611502,0.399746,112150.0,112140.0,0.01806868]
[1756410611700,0.88081362,112150.0,112140.0,0.01806868]
[1756410612098,1.21081362,112150.0,112140.0,0.01806868]
[1756410612602,1.21081362,112150.0,112140.0,0.01906868]
[1756410612805,1.21081362,112150.0,112140.0,0.001]
[1756410612998,0.04044,112120.0,112110.0,0.60853702]
[1756410613303,0.9863642,112120.0,112110.0,0.60853702]
[1756410613697,0.9863642,112120.0,112110.0,0.1274694]
[1756410613999,0.9863642,112120.0,112110.0,0.1046994]
[1756410614207,0.9863642,112120.0,112110.0,0.1354694]
[1756410614498,0.1483242,112120.0,112110.0,0.1354694]
[1756410614804,0.9863642,112120.0,112110.0,0.61653702]
[1756410615508,0.0591394,112120.0,112110.0,0.61653702]
[1756410616003,0.8179242,112120.0,112110.0,0.61653702]
[1756410617906,0.8179242,112120.0,112110.0,0.1354694]
[1756410618103,0.1483242,112120.0,112110.0,0.61653702]
[1756410618300,0.9863242,112120.0,112110.0,0.61653702]
[1756410618701,0.9863242,112120.0,112110.0,0.1354694]
[1756410618901,0.9863242,112120.0,112110.0,0.61653702]
[1756410621211,0.9863242,112120.0,112110.0,0.008]
[1756410621212,1.71739182,112120.0,112110.0,0.008]
[1756410621718,0.1296407,112100.0,112090.0,0.975]
[1756410622007,1.46860232,112100.0,112090.0,0.975]
[1756410622201,0.9875347,112100.0,112090.0,1.56078622]
[1756410622403,0.9875347,112100.0,112090.0,1.58355622]
[1756410622801,0.9875347,112100.0,112090.0,1.1084886]
[1756410623002,0.1505747,112100.0,112090.0,1.1084886]
[1756410623306,0.9885347,112100.0,112090.0,1.01328]
[1756410623505,0.1515747,112100.0,112090.0,1.01328]
[1756410623705,0.9895747,112100.0,112090.0,1.1024886]
[1756410624203,0.9895347,112100.0,112090.0,1.1024886]
[1756410624408,0.9895347,112100.0,112090.0,1.58355622]
[1756410624606,1.06157744,112100.0,112090.0,1.1024886]
[1756410624806,1.06157744,112100.0,112090.0,0.99051]
[1756410625517,1.06157744,112100.0,112090.0,1.01328]
[1756410626116,1.06161744,112100.0,112090.0,1.01328]
[1756410626412,0.22361744,112100.0,112090.0,1.01328]
[1756410626608,1.06161744,112100.0,112090.0,1.01328]
[1756410631414,1.06161744,112100.0,112090.0,1.1024882]
[1756410631807,1.54268506,112100.0,112090.0,1.01328]
[1756410633415,1.54268506,112100.0,112090.0,0.99051]
[1756410633810,2.15268506,112100.0,112090.0,0.975]
[1756410638310,2.17904286,112100.0,112090.0,0.975]
[1756410639715,1.34104286,112100.0,112090.0,0.975]
[1756410639920,2.17892286,112100.0,112090.0,0.99102]
[1756410640714,1.34104286,112100.0,112090.0,0.99102]
[1756410640914,2.17896286,112100.0,112090.0,0.99102]
[1756410641322,0.60997524,112100.0,112090.0,1.01583]
[1756410641523,0.31997524,112100.0,112090.0,1.01583]
[1756410641832,1.63892286,112100.0,112090.0,1.01583]
[1756410642120,0.80104286,112100.0,112090.0,1.01583]
[1756410642320,1.56892286,112100.0,112090.0,1.01583]
[1756410642824,1.08785524,112100.0,112090.0,1.01583]
[1756410643016,1.56892286,112100.0,112090.0,1.01583]
[1756410644417,1.08781524,112100.0,112090.0,1.01583]
[1756410644618,1.06347524,112100.0,112090.0,1.01583]
[1756410644817,1.06347524,112100.0,112090.0,1.74689762]
[1756410645026,0.9753325,112100.0,112090.0,1.74689762]
[1756410645321,0.9489747,112100.0,112090.0,1.74689762]
[1756410645518,0.9489747,112100.0,112090.0,1.26583]
[1756410647429,0.9489747,112100.0,112090.0,1.74689762]
[1756410647926,0.9489747,112100.0,112090.0,1.83610592]
[1756410648930,0.0891978,112110.0,112100.0,0.1300277]
[1756410649124,0.9269178,112110.0,112100.0,0.61109532]
[1756410649328,0.9269178,112110.0,112100.0,0.86109532]
[1756410650030,0.9339178,112110.0,112100.0,0.86109532]
[1756410650231,0.9339124,112110.0,112100.0,0.86109532]
[1756410651732,0.9329124,112110.0,112100.0,0.86109532]
[1756410651929,0.9289124,112110.0,112100.0,0.86109532]
[1756410652129,0.9309124,112110.0,112100.0,0.86109532]
[1756410652531,1.45077002,112110.0,112100.0,0.04083]
[1756410652925,0.9697024,112110.0,112100.0,0.04083]
[1756410653526,0.9691024,112110.0,112100.0,0.04083]
[1756410654131,0.9691024,112110.0,112100.0,0.01602]
[1756410654528,0.9691024,112110.0,112100.0,0.04083]
[1756410654928,1.45017002,112110.0,112100.0,0.04083]
[1756410655235,0.9691024,112110.0,112100.0,0.04083]
[1756410657928,0.9691024,112110.0,112100.0,0.52189762]
[1756410658831,0.9691024,112110.0,112100.0,0.61109792]
[1756410659234,0.9691024,112110.0,112100.0,0.1300303]
[1756410659433,0.9691024,112110.0,112100.0,0.61109792]
[1756410660133,0.9691024,112110.0,112100.0,0.52189762]
[1756410660340,0.1118203,112100.0,112090.0,1.01696881]
[1756410660639,0.60930792,112100.0,112090.0,0.975]
[1756410660841,0.85930792,112100.0,112090.0,0.99087]
[1756410661028,0.39847947,112100.0,112090.0,0.975]
[1756410661233,0.87954709,112100.0,112090.0,0.975]
[1756410661433,0.88054709,112100.0,112090.0,0.975]
[1756410661841,0.88154709,112100.0,112090.0,0.99087]
[1756410662232,0.88154709,112100.0,112090.0,0.975]
[1756410662734,0.88354709,112100.0,112090.0,0.99087]
[1756410662934,0.88354709,112100.0,112090.0,0.975]
[1756410664046,0.88354709,112100.0,112090.0,0.99087]
[1756410664245,0.88354709,112100.0,112090.0,0.975]
[1756410664745,0.88354709,112100.0,112090.0,0.99087]
[1756410665546,0.40247947,112100.0,112090.0,0.99087]
[1756410666144,0.88354709,112100.0,112090.0,0.99087]
[1756410667747,0.88354709,112100.0,112090.0,1.01471]
[1756410667945,0.40247947,112100.0,112090.0,1.01471]
[1756410668136,1.72078709,112100.0,112090.0,1.01471]
[1756410668339,1.72074709,112100.0,112090.0,1.01471]
[1756410669442,0.15247947,112100.0,112090.0,1.1039183]
[1756410669650,0.96705947,112100.0,112090.0,1.83498592]
[1756410669842,0.95059947,112100.0,112090.0,1.83498592]
[1756410670244,0.95059947,112100.0,112090.0,1.3539183]
[1756410670550,0.95059947,112100.0,112090.0,1.83498592]
[1756410672548,0.95059947,112100.0,112090.0,1.74577762]
[1756410672740,0.95059947,112100.0,112090.0,1.83498582]
[1756410675047,0.02423917,112100.0,112090.0,1.83498582]
[1756410675351,0.86131917,112100.0,112090.0,1.83498582]
[1756410675647,0.95051947,112100.0,112090.0,1.83498582]
[1756410676648,0.02423917,112100.0,112090.0,1.83498582]
[1756410676946,0.95043947,112100.0,112090.0,1.83498582]
[1756410677151,0.86123917,112100.0,112090.0,1.83498582]
[1756410677351,0.02423917,112100.0,112090.0,1.83498582]
[1756410677653,0.86123917,112100.0,112090.0,1.83498582]
[1756410678551,0.02423917,112100.0,112090.0,1.83498582]
[1756410678950,0.8975576,112110.0,112100.0,0.0892003]
[1756410679255,0.8975576,112110.0,112100.0,0.60997792]
[1756410679753,0.9139776,112110.0,112100.0,0.60997792]
[1756410680552,0.9485376,112110.0,112100.0,0.60997792]
[1756410680946,0.9485376,112110.0,112100.0,0.62805408]
[1756410681748,0.9711576,112110.0,112100.0,0.62805408]
[1756410683854,0.9711576,112110.0,112100.0,0.63715078]
[1756410684557,0.85926,112110.0,112100.0,0.63715078]
[1756410684756,0.9484524,112110.0,112100.0,0.63715078]
[1756410685249,0.9710724,112110.0,112100.0,0.14698646]
[1756410685445,0.9710724,112110.0,112100.0,0.62805408]
[1756410685650,0.9484524,112110.0,112100.0,0.62805408]
[1756410685859,0.9710724,112110.0,112100.0,0.62805408]
[1756410686657,0.9710724,112110.0,112100.0,0.63709218]
[1756410686849,0.9710724,112110.0,112100.0,0.62805408]
[1756410687250,0.9710724,112110.0,112100.0,0.14698646]
[1756410687451,0.9710724,112110.0,112100.0,0.62805408]
[1756410690847,1.70214002,112110.0,112100.0,0.03394616]
[1756410691055,1.70214002,112110.0,112100.0,0.01807616]
[1756410691255,0.1270205,112100.0,112090.0,0.975]
[1756410691550,0.60808812,112100.0,112090.0,0.975]
[1756410691959,0.85808812,112100.0,112090.0,0.975]
[1756410692160,0.85808812,112100.0,112090.0,0.99162]
[1756410692357,0.3770205,112100.0,112090.0,1.58492612]
[1756410692558,0.9645805,112100.0,112090.0,1.58492612]
[1756410693063,0.9655805,112100.0,112090.0,1.58492612]
[1756410693260,0.9655805,112100.0,112090.0,1.49571762]
[1756410693561,0.9655805,112100.0,112090.0,1.01465]
[1756410694563,0.9655805,112100.0,112090.0,0.99162]
[1756410695862,0.9655805,112100.0,112090.0,0.975]
[1756410696256,0.9655805,112100.0,112090.0,0.99162]
[1756410697561,0.9655805,112100.0,112090.0,1.01465]
[1756410699856,1.44664812,112100.0,112090.0,0.975]
[1756410700760,1.44664812,112100.0,112090.0,0.99162]
[1756410700963,0.13781411,112100.0,112090.0,1.01465]
[1756410701152,0.97421411,112100.0,112090.0,1.01465]
[1756410701860,0.13781411,112100.0,112090.0,1.01465]
[1756410702164,0.9654205,112100.0,112090.0,1.58492612]
[1756410702864,0.9426405,112100.0,112090.0,1.58492612]
[1756410703070,0.9276005,112100.0,112090.0,1.58492612]
[1756410703567,0.9503805,112100.0,112090.0,1.58492612]
[1756410703959,0.9503805,112100.0,112090.0,1.49571762]
[1756410705670,1.44648812,112100.0,112090.0,0.99162]
[1756410706060,1.44648812,112100.0,112090.0,1.01465]
[1756410706368,0.9654205,112100.0,112090.0,1.01465]
[1756410707167,1.44648812,112100.0,112090.0,1.01465]
[1756410707966,0.9654205,112100.0,112090.0,1.01465]
[1756410712768,0.1290205,112100.0,112090.0,1.01465]
[1756410713068,0.9651805,112100.0,112090.0,1.1038587]
[1756410713255,0.9651805,112100.0,112090.0,1.01465]
[1756410713962,0.9651805,112100.0,112090.0,1.49571762]
[1756410714566,0.9651805,112100.0,112090.0,1.01465]
[1756410718378,0.9651805,112100.0,112090.0,1.49571762]
[1756410720773,0.9651805,112100.0,112090.0,1.01465]
[1756410720971,0.9651805,112100.0,112090.0,1.1038586]
[1756410721670,0.9650205,112100.0,112090.0,1.1038586]
[1756410723171,0.9650205,112100.0,112090.0,1.01465]
[1756410723371,1.44608812,112100.0,112090.0,1.01465]
[1756410725270,0.9650205,112100.0,112090.0,1.01465]
[1756410725780,0.1290205,112100.0,112090.0,1.1038584]
[1756410725977,0.9649005,112100.0,112090.0,1.58492602]
[1756410726882,0.1290205,112100.0,112090.0,1.58492602]
[1756410727277,0.9270805,112100.0,112090.0,1.58492602]
[1756410727792,0.9270805,112100.0,112090.0,1.3538584]
[1756410727978,0.9270805,112100.0,112090.0,1.83492602]
[1756410730183,0.0912005,112100.0,112090.0,1.83492602]
[1756410730375,0.002,112100.0,112090.0,1.83492602]
[1756410730584,0.002,112100.0,112090.0,2.67072602]
[1756410731481,0.9677091,112120.0,112090.0,2.75993442]
[1756410731779,0.9839391,112120.0,112110.0,0.60973032]
[1756410731978,0.1481791,112120.0,112110.0,0.60973032]
[1756410732177,0.1088891,112120.0,112110.0,0.60973032]
[1756410732377,0.9608791,112120.0,112110.0,0.60973032]
[1756410732581,0.9839391,112120.0,112110.0,0.60973032]
[1756410732975,0.9839391,112120.0,112110.0,0.62794857]
[1756410734178,0.9652397,112120.0,112110.0,0.62794857]
[1756410735183,0.9662397,112120.0,112110.0,0.62794857]
[1756410736576,0.1304797,112120.0,112110.0,0.62794857]
[1756410736982,0.85383,112120.0,112110.0,0.62794857]
[1756410737186,0.9660748,112120.0,112110.0,0.62794857]
[1756410738095,0.01823,112120.0,112110.0,0.62794857]
[1756410738281,0.83756,112120.0,112110.0,0.87794857]
[1756410738683,0.002,112120.0,112110.0,0.87794857]
[1756410739384,0.001,112120.0,112110.0,0.87794857]
[1756410739581,0.94487826,112130.0,112110.0,0.87794857]
[1756410739788,0.98416826,112130.0,112120.0,0.60972232]
[1756410740676,0.98416826,112130.0,112120.0,0.1286547]
[1756410740880,0.98416826,112130.0,112120.0,0.60972232]
[1756410741288,0.98516826,112130.0,112120.0,0.60972232]
[1756410741684,0.98616826,112130.0,112120.0,0.60972232]
[1756410742488,0.98716826,112130.0,112120.0,0.60972232]
[1756410742792,0.98616826,112130.0,112120.0,0.60972232]
[1756410742978,0.98916826,112130.0,112120.0,0.60972232]
[1756410748491,0.98916826,112130.0,112120.0,0.1286547]
[1756410748688,0.98916826,112130.0,112120.0,0.60972232]
[1756410749494,0.98916826,112130.0,112120.0,0.01562]
[1756410749690,1.47023588,112130.0,112120.0,0.01562]
[1756410750688,0.1287947,112120.0,112110.0,0.14727835]
[1756410750890,0.1287947,112120.0,112110.0,0.62834597]
[1756410751993,0.1297947,112120.0,112110.0,0.62834597]
[1756410752193,0.1307947,112120.0,112110.0,0.62834597]
[1756410752595,0.1307947,112120.0,112110.0,0.14727835]
[1756410752794,0.1307947,112120.0,112110.0,0.62834597]
[1756410758196,0.1307947,112120.0,112110.0,0.14727835]
[1756410758395,0.1307947,112120.0,112110.0,0.62834597]
[1756410760191,0.04161,112120.0,112110.0,0.62834597]
[1756410760399,0.0186,112120.0,112110.0,0.62834597]
[1756410761087,0.002,112120.0,112110.0,0.62834597]
[1756410761287,0.002,112120.0,112110.0,0.87834597]
[1756410761492,0.002,112120.0,112110.0,1.71318597]
[1756410762798,0.001,112120.0,112110.0,1.71318597]
[1756410763298,0.1057773,112130.0,112120.0,0.1052047]
[1756410763498,0.1057773,112130.0,112120.0,0.60951232]
[1756410764694,0.0176,112130.0,112120.0,1.09057994]
[1756410764899,0.0186,112130.0,112120.0,1.09057994]
[1756410765198,0.0186,112130.0,112120.0,0.60951232]
[1756410765399,0.002,112130.0,112120.0,0.60951232]
[1756410766198,0.002,112130.0,112120.0,1.34057994]
[1756410766399,0.0166,112150.0,112140.0,0.60949642]
[1756410766695,0.1057613,112150.0,112140.0,0.62769293]
[1756410766899,0.963407,112160.0,112150.0,0.1284213]
[1756410767099,0.87425,112160.0,112150.0,0.60948892]
[1756410767588,0.9634034,112160.0,112150.0,0.60948892]
[1756410768593,0.9644034,112160.0,112150.0,0.60948892]
[1756410769392,0.9654034,112160.0,112150.0,0.60948892]
[1756410769594,0.87613,112160.0,112150.0,0.60948892]
[1756410769990,0.9652835,112160.0,112150.0,0.60948892]
[1756410770195,0.87613,112160.0,112150.0,0.60948892]
[1756410770698,0.87513,112160.0,112150.0,0.60948892]
[1756410771202,0.9642835,112160.0,112150.0,0.60948892]
[1756410772594,0.9652835,112160.0,112150.0,0.60948892]
[1756410774897,0.9652835,112160.0,112150.0,0.60948932]
[1756410777307,0.9662835,112160.0,112150.0,0.60948932]
[1756410778504,0.9672835,112160.0,112150.0,0.60948932]
[1756410780306,0.9672835,112160.0,112150.0,0.1284217]
[1756410780506,0.9672835,112160.0,112150.0,0.60948932]
[1756410782704,0.87813,112160.0,112150.0,0.60948932]
[1756410783009,0.9672838,112160.0,112150.0,0.60948932]
[1756410783308,0.87813,112160.0,112150.0,0.60948932]
[1756410784300,0.9672838,112160.0,112150.0,0.60948932]
[1756410786514,0.9672838,112160.0,112150.0,0.1051817]
[1756410786699,0.9672838,112160.0,112150.0,0.60950932]
[1756410786904,0.9672838,112160.0,112150.0,0.1284417]
[1756410787203,0.9672838,112160.0,112150.0,0.60950932]
[1756410787400,0.9672838,112160.0,112140.0,0.60354813]
[1756410787401,0.1052217,112150.0,112140.0,0.60354813]
[1756410787607,0.1302017,112150.0,112140.0,0.60354813]
[1756410787905,0.04104,112150.0,112140.0,0.62680813]
[1756410788505,0.1302017,112150.0,112140.0,0.62680813]
[1756410788809,0.1312017,112150.0,112140.0,0.62680813]
[1756410790113,0.1322017,112150.0,112140.0,0.62680813]
[1756410793611,0.1322017,112150.0,112140.0,0.87680813]
[1756410793612,0.002,112150.0,112140.0,0.87680813]
[1756410795623,0.04304,112150.0,112140.0,0.39574051]
[1756410795920,0.04204,112150.0,112140.0,0.87680813]
[1756410796521,0.04104,112150.0,112140.0,0.87680813]
[1756410796816,0.9637171,112160.0,112150.0,0.1275417]
[1756410797011,0.9637171,112160.0,112150.0,0.60860932]
[1756410798011,0.87456,112160.0,112150.0,0.60860932]
[1756410798218,0.87556,112160.0,112150.0,0.60860932]
[1756410798419,0.87656,112160.0,112150.0,0.60860932]
[1756410799024,0.04304,112160.0,112150.0,0.60860932]
[1756410799221,0.87644,112160.0,112150.0,0.60860932]
[1756410799617,0.87644,112160.0,112150.0,0.1275417]
[1756410799822,0.9655937,112160.0,112150.0,0.60860932]
[1756410800012,0.87644,112160.0,112150.0,0.60860932]
[1756410804427,0.9655937,112160.0,112150.0,0.60860932]
[1756410805525,0.87644,112160.0,112150.0,0.60860932]
[1756410806427,0.04304,112160.0,112150.0,0.60860932]
[1756410806620,0.87628,112160.0,112150.0,0.60860932]
[1756410807028,0.01806,112160.0,112150.0,0.60860932]
[1756410807221,0.002,112160.0,112150.0,0.85860932]
[1756410807526,0.01806,112160.0,112150.0,0.85860932]
[1756410809123,0.002,112160.0,112150.0,0.85860932]
[1756410809833,0.01806,112160.0,112150.0,0.85860932]
[1756410810729,0.002,112160.0,112150.0,0.85860932]
[1756410813731,0.01807,112160.0,112150.0,0.85860932]
[1756410813932,0.04279,112160.0,112150.0,1.69172932]
[1756410815022,0.01807,112160.0,112150.0,1.69172932]
[1756410815634,0.002,112160.0,112150.0,1.69172932]
[1756410816423,0.002,112160.0,112150.0,1.69160932]
[1756410819339,0.002,112160.0,112150.0,0.85860932]
[1756410819526,0.01807,112160.0,112150.0,1.69152932]
[1756410820234,0.002,112160.0,112150.0,1.69152932]
[1756410820431,0.002,112160.0,112150.0,2.17259694]
[1756410820639,0.01984389,112170.0,112160.0,0.1122333]
[1756410820832,0.01984389,112170.0,112160.0,1.10901985]
[1756410821347,0.30459,112200.0,112190.0,0.1287794]
[1756410821538,0.30459,112200.0,112190.0,0.60984702]
[1756410821539,0.04079,112200.0,112190.0,0.60984702]
[1756410821735,0.1299115,112200.0,112190.0,0.60984702]
[1756410823438,0.1329115,112200.0,112190.0,0.60984702]
[1756410823638,0.1369115,112200.0,112190.0,0.60984702]
[1756410827842,0.1369115,112200.0,112190.0,0.1287794]
[1756410828043,0.1369115,112200.0,112190.0,0.60984702]
[1756410830432,0.1121915,112200.0,112190.0,0.60984702]
[1756410830637,0.1369115,112200.0,112190.0,0.60984702]
[1756410831345,0.1369115,112200.0,112190.0,0.1287794]
[1756410831542,0.1369115,112200.0,112190.0,0.03965]
[1756410832141,0.1369115,112200.0,112190.0,0.60984722]
[1756410839552,0.1369115,112200.0,112190.0,0.52071762]
[1756410840250,0.86797912,112200.0,112190.0,0.03965]
[1756410840457,0.1272696,112190.0,112180.0,0.03848]
[1756410840755,1.46894578,112190.0,112180.0,0.03848]
[1756410841060,1.46894578,112190.0,112180.0,0.01589]
[1756410841946,0.98787816,112190.0,112180.0,0.03848]
[1756410842449,1.46878578,112190.0,112180.0,0.03848]
[1756410842852,1.47078578,112190.0,112180.0,0.03848]
[1756410843259,0.1272777,112180.0,112170.0,0.03848]
[1756410844057,0.1272777,112180.0,112170.0,0.51954762]
[1756410844362,0.1272777,112180.0,112170.0,0.03848]
[1756410844559,0.1292777,112180.0,112170.0,0.03848]
[1756410845058,0.61034532,112180.0,112170.0,0.03848]
[1756410845264,0.86134532,112180.0,112170.0,0.01589]
[1756410845855,0.3802777,112180.0,112170.0,0.01589]
[1756410847365,0.86134532,112180.0,112170.0,0.01589]
[1756410848462,0.1272857,112170.0,112160.0,0.05656131]
[1756410848761,0.98813233,112170.0,112160.0,0.05656131]
[1756410849366,0.98813233,112170.0,112160.0,0.01808131]
[1756410849571,1.44995332,112170.0,112160.0,0.01808131]
[1756410850169,0.60935332,112170.0,112160.0,0.01808131]
[1756410850368,0.9705657,112170.0,112160.0,0.03397131]
[1756410850569,1.45063332,112170.0,112160.0,0.01808131]
[1756410850770,1.45263332,112170.0,112160.0,0.03397131]
[1756410851268,1.45363332,112170.0,112160.0,0.03397131]
[1756410852571,1.45363332,112170.0,112160.0,0.01808131]
[1756410854065,1.45475332,112170.0,112160.0,0.01808131]
[1756410854465,0.9732857,112170.0,112160.0,0.05656131]
[1756410854665,1.45435332,112170.0,112160.0,0.05656131]
[1756410854867,1.45427332,112170.0,112160.0,0.05656131]
[1756410855270,1.45427332,112170.0,112160.0,0.03397131]
[1756410855767,1.45427332,112170.0,112160.0,0.05656131]
[1756410858274,1.45427332,112170.0,112160.0,0.03397131]
[1756410859270,1.45427332,112170.0,112160.0,0.01808131]
[1756410860472,0.61135332,112170.0,112160.0,0.01808131]
[1756410860670,1.45327332,112170.0,112160.0,0.01808131]
[1756410860871,0.1272935,112160.0,112150.0,0.03848]
[1756410862471,0.1272935,112160.0,112150.0,0.51954762]
[1756410863078,0.1272935,112160.0,112150.0,0.03848]
[1756410863278,0.1282935,112160.0,112150.0,0.03848]
[1756410864179,0.1292935,112160.0,112150.0,0.03848]
[1756410864366,0.1302935,112160.0,112150.0,0.03848]
[1756410865166,0.9719335,112160.0,112150.0,0.03848]
[1756410866173,0.9719335,112160.0,112150.0,0.51954762]
[1756410866882,0.98101671,112160.0,112150.0,0.51954762]